Workbook

Sheet Entrada de previsión
B2: HLP Manufacturing INC
B3: Previsión de ventas
B4: Confidencial
B6: Nombre de la oportunidad | C6: Ventas agente | D6: Ventas región | E6: Ventas categoría | F6: Cantidad prevista | G6: Ventas fase | H6: Probabilidad de venta | I6: Previsión cerrar | J6: Previsión ponderada
B7: Adatum Corporation | C7: Rowan Murphy | D7: Estados Unidos: nordeste | E7: Consultoría | F7: 150,000 € | G7: Aprobación formal | H7: 90% | I7: =DATE(YEAR(TODAY())+1,1,1) -> 2025-01-01 | J7: =Tabla_EntradaPrevisión[[#This Row],[Cantidad prevista]]*Tabla_EntradaPrevisión[[#This Row],[Probabilidad de venta]] -> 135,000 €
B8: Adventure Works | C8: Miho Kojima | D8: Estados Unidos: sudeste | E8: Productos | F8: 145,200 € | G8: Oportunidad | H8: 10% | I8: =DATE(YEAR(TODAY())+1,2,1) -> 2025-02-01 | J8: =Tabla_EntradaPrevisión[[#This Row],[Cantidad prevista]]*Tabla_EntradaPrevisión[[#This Row],[Probabilidad de venta]] -> 14,520 €
B9: Alpine Ski House | C9: Cora Thomas | D9: Estados Unidos: norte central | E9: Aprendizaje | F9: 162,500 € | G9: Necesidad identificada | H9: 20% | I9: =DATE(YEAR(TODAY())+1,3,1) -> 2025-03-01 | J9: =Tabla_EntradaPrevisión[[#This Row],[Cantidad prevista]]*Tabla_EntradaPrevisión[[#This Row],[Probabilidad de venta]] -> 32,500 €
B10: Museo de ciencia Baldwin | C10: Ellis Turner | D10: Estados Unidos: sur central | E10: Mezcla | F10: 147,500 € | G10: Patrocinio | H10: 30% | I10: =DATE(YEAR(TODAY())+1,4,1) -> 2025-04-01 | J10: =Tabla_EntradaPrevisión[[#This Row],[Cantidad prevista]]*Tabla_EntradaPrevisión[[#This Row],[Probabilidad de venta]] -> 44,250 €
B11: Blue Yonder Airlines | C11: Suma Kini | D11: Estados Unidos: noroeste | E11: Servicios profesionales | F11: 148,000 € | G11: Presupuesto validado | H11: 40% | I11: =DATE(YEAR(TODAY())+1,5,1) -> 2025-05-01 | J11: =Tabla_EntradaPrevisión[[#This Row],[Cantidad prevista]]*Tabla_EntradaPrevisión[[#This Row],[Probabilidad de venta]] -> 59,200 €
B12: City Power & Light | C12: Rowan Murphy | D12: Estados Unidos: sudoeste | E12: Apoyo | F12: 175,000 € | G12: Análisis de necesidades | H12: 50% | I12: =DATE(YEAR(TODAY())+1,6,1) -> 2025-06-01 | J12: =Tabla_EntradaPrevisión[[#This Row],[Cantidad prevista]]*Tabla_EntradaPrevisión[[#This Row],[Probabilidad de venta]] -> 87,500 €
B13: Coho Vineyard | C13: Cora Thomas | D13: Canadá: este | E13: Mezcla | F13: 149,000 € | G13: Solución propuesta | H13: 60% | I13: =DATE(YEAR(TODAY())+1,7,1) -> 2025-07-01 | J13: =Tabla_EntradaPrevisión[[#This Row],[Cantidad prevista]]*Tabla_EntradaPrevisión[[#This Row],[Probabilidad de venta]] -> 89,400 €
B14: Coho Winery | C14: Suma Kini | D14: Canadá: oeste | E14: Aprendizaje | F14: 142,000 € | G14: Propuesta escrita | H14: 70% | I14: =DATE(YEAR(TODAY())+1,8,1) -> 2025-08-01 | J14: =Tabla_EntradaPrevisión[[#This Row],[Cantidad prevista]]*Tabla_EntradaPrevisión[[#This Row],[Probabilidad de venta]] -> 99,400 €
B15: Contoso, Ltd. | C15: Cora Thomas | D15: EMEA: Francia | E15: Mezcla | F15: 172,500 € | G15: Aprobación verbal | H15: 90% | I15: =DATE(YEAR(TODAY())+1,10,1) -> 2025-10-01 | J15: =Tabla_EntradaPrevisión[[#This Row],[Cantidad prevista]]*Tabla_EntradaPrevisión[[#This Row],[Probabilidad de venta]] -> 155,250 €
B16: Contoso Pharmaceuticals | C16: Ellis Turner | D16: EMEA: Alemania | E16: Productos | F16: 163,500 € | G16: Patrocinio | H16: 20% | I16: =DATE(YEAR(TODAY())+1,11,1) -> 2025-11-01 | J16: =Tabla_EntradaPrevisión[[#This Row],[Cantidad prevista]]*Tabla_EntradaPrevisión[[#This Row],[Probabilidad de venta]] -> 32,700 €
B17: Consolidated Messenger | C17: Suma Kini | D17: EMEA: Italia | E17: Productos | F17: 155,500 € | G17: Aprobación formal | H17: 100% | I17: =DATE(YEAR(TODAY())+1,12,1) -> 2025-12-01 | J17: =Tabla_EntradaPrevisión[[#This Row],[Cantidad prevista]]*Tabla_EntradaPrevisión[[#This Row],[Probabilidad de venta]] -> 155,500 €
B18: Fabrikam, Inc. | C18: Ellis Turner | D18: EMEA: otro | E18: Consultoría | F18: 166,000 € | G18: Oportunidad | H18: 10% | I18: =DATE(YEAR(TODAY())+1,1,1) -> 2025-01-01 | J18: =Tabla_EntradaPrevisión[[#This Row],[Cantidad prevista]]*Tabla_EntradaPrevisión[[#This Row],[Probabilidad de venta]] -> 16,600 €
B19: Fourth Coffee | C19: Cora Thomas | D19: APSA: Asia | E19: Aprendizaje | F19: 180,000 € | G19: Presupuesto validado | H19: 30% | I19: =DATE(YEAR(TODAY())+1,3,1) -> 2025-03-01 | J19: =Tabla_EntradaPrevisión[[#This Row],[Cantidad prevista]]*Tabla_EntradaPrevisión[[#This Row],[Probabilidad de venta]] -> 54,000 €
B20: Graphic Design Institute | C20: Miho Kojima | D20: APSA: Pacífico | E20: Servicios | F20: 140,000 € | G20: Solución propuesta | H20: 60% | I20: =DATE(YEAR(TODAY())+1,5,1) -> 2025-05-01 | J20: =Tabla_EntradaPrevisión[[#This Row],[Cantidad prevista]]*Tabla_EntradaPrevisión[[#This Row],[Probabilidad de venta]] -> 84,000 €
B21: Humongous Insurance | C21: Rowan Murphy | D21: APSA: México | E21: Soporte | F21: 155,000 € | G21: Patrocinio | H21: 30% | I21: =DATE(YEAR(TODAY())+1,6,1) -> 2025-06-01 | J21: =Tabla_EntradaPrevisión[[#This Row],[Cantidad prevista]]*Tabla_EntradaPrevisión[[#This Row],[Probabilidad de venta]] -> 46,500 €
B22: Litware, Inc. | C22: Miho Kojima | D22: APSA: Australia | E22: Servicios profesionales | F22: 173,200 € | G22: Análisis de necesidades | H22: 50% | I22: =DATE(YEAR(TODAY())+1,10,1) -> 2025-10-01 | J22: =Tabla_EntradaPrevisión[[#This Row],[Cantidad prevista]]*Tabla_EntradaPrevisión[[#This Row],[Probabilidad de venta]] -> 86,600 €
B23: Lucerne Publishing | C23: Suma Kini | D23: APSA: otro | E23: Servicios | F23: 146,500 € | G23: Solución propuesta | H23: 60% | I23: =DATE(YEAR(TODAY())+1,12,1) -> 2025-12-01 | J23: =Tabla_EntradaPrevisión[[#This Row],[Cantidad prevista]]*Tabla_EntradaPrevisión[[#This Row],[Probabilidad de venta]] -> 87,900 €
B24: Margie's Travel | C24: Ellis Turner | D24: Estados Unidos: nordeste | E24: Soporte técnico | F24: 156,750 € | G24: Propuesta escrita | H24: 70% | I24: =DATE(YEAR(TODAY())+1,11,1) -> 2025-11-01 | J24: =Tabla_EntradaPrevisión[[#This Row],[Cantidad prevista]]*Tabla_EntradaPrevisión[[#This Row],[Probabilidad de venta]] -> 109,725 €
B25: Northwind Traders | C25: Cora Thomas | D25: Estados Unidos: sur central | E25: Servicios profesionales | F25: 162,000 € | G25: Aprobación verbal | H25: 90% | I25: =DATE(YEAR(TODAY())+1,2,1) -> 2025-02-01 | J25: =Tabla_EntradaPrevisión[[#This Row],[Cantidad prevista]]*Tabla_EntradaPrevisión[[#This Row],[Probabilidad de venta]] -> 145,800 €
B26: Proseware, Inc. | C26: Ellis Turner | D26: Canadá: este | E26: Mezcla | F26: 157,000 € | G26: Aprobación formal | H26: 100% | I26: =DATE(YEAR(TODAY())+1,3,1) -> 2025-03-01 | J26: =Tabla_EntradaPrevisión[[#This Row],[Cantidad prevista]]*Tabla_EntradaPrevisión[[#This Row],[Probabilidad de venta]] -> 157,000 €
B27: School of Fine Art | C27: Miho Kojima | D27: EMEA: Francia | E27: Servicios | F27: 173,000 € | G27: Presupuesto validado | H27: 40% | I27: =DATE(YEAR(TODAY())+1,4,1) -> 2025-04-01 | J27: =Tabla_EntradaPrevisión[[#This Row],[Cantidad prevista]]*Tabla_EntradaPrevisión[[#This Row],[Probabilidad de venta]] -> 69,200 €
B28: Vídeo de Southridge | C28: Suma Kini | D28: EMEA: Reino Unido | E28: Mezcla | F28: 171,000 € | G28: Análisis de necesidades | H28: 50% | I28: =DATE(YEAR(TODAY())+1,8,1) -> 2025-08-01 | J28: =Tabla_EntradaPrevisión[[#This Row],[Cantidad prevista]]*Tabla_EntradaPrevisión[[#This Row],[Probabilidad de venta]] -> 85,500 €
B29: Tailspin Toys | C29: Rowan Murphy | D29: APSA: Australia | E29: Productos | F29: 168,000 € | G29: Solución propuesta | H29: 60% | I29: =DATE(YEAR(TODAY())+1,9,1) -> 2025-09-01 | J29: =Tabla_EntradaPrevisión[[#This Row],[Cantidad prevista]]*Tabla_EntradaPrevisión[[#This Row],[Probabilidad de venta]] -> 100,800 €

Sheet Previsión de ventas
B2: =NombreEmpresa -> HLP Manufacturing INC
B3: Gráfico de previsión
B4: Confidencial
B5: Mes inicial | C5: =DATE(YEAR(TODAY())+1,1,1) -> 2025-01-01
B6: Mes | C6: Mensualmente previsión | D6: Acumulado | P6: =B6 -> Mes | Q6: Previsión mensual | R6: Acumulado
B7: =DATE(YEAR(Mes_inicial),MONTH(Mes_inicial)+0,1) -> 2025-01-01 | C7: =SUMIFS(Tabla_EntradaPrevisión[Previsión ponderada],Tabla_EntradaPrevisión[Previsión cerrar],">="&'Previsión de ventas'!B7,Tabla_EntradaPrevisión[Previsión cerrar],"<="&DATE(YEAR('Previsión de ventas'!B7),MONTH('Previsión de ventas'!B7)+1,0)) -> 151,600 € | D7: =IF(ISNUMBER(D6),D6+C7,C7) -> 151,600 € | P7: =B7 -> 2025-01-01 | Q7: =C7 -> 151,600 € | R7: =D7-C7 -> 0
B8: =DATE(YEAR(Mes_inicial),MONTH(Mes_inicial)+1,1) -> 2025-02-01 | C8: =SUMIFS(Tabla_EntradaPrevisión[Previsión ponderada],Tabla_EntradaPrevisión[Previsión cerrar],">="&'Previsión de ventas'!B8,Tabla_EntradaPrevisión[Previsión cerrar],"<="&DATE(YEAR('Previsión de ventas'!B8),MONTH('Previsión de ventas'!B8)+1,0)) -> 160,320 € | D8: 311,920 € | P8: 2025-02-01 | Q8: =C8 -> 160,320 € | R8: =D8-C8 -> 151,600 €
B9: =DATE(YEAR(Mes_inicial),MONTH(Mes_inicial)+2,1) -> 2025-03-01 | C9: =SUMIFS(Tabla_EntradaPrevisión[Previsión ponderada],Tabla_EntradaPrevisión[Previsión cerrar],">="&'Previsión de ventas'!B9,Tabla_EntradaPrevisión[Previsión cerrar],"<="&DATE(YEAR('Previsión de ventas'!B9),MONTH('Previsión de ventas'!B9)+1,0)) -> 243,500 € | D9: =IF(ISNUMBER(D8),D8+C9,C9) -> 555,420 € | P9: =B9 -> 2025-03-01 | Q9: =C9 -> 243,500 € | R9: =D9-C9 -> 311,920 €
B10: =DATE(YEAR(Mes_inicial),MONTH(Mes_inicial)+3,1) -> 2025-04-01 | C10: =SUMIFS(Tabla_EntradaPrevisión[Previsión ponderada],Tabla_EntradaPrevisión[Previsión cerrar],">="&'Previsión de ventas'!B10,Tabla_EntradaPrevisión[Previsión cerrar],"<="&DATE(YEAR('Previsión de ventas'!B10),MONTH('Previsión de ventas'!B10)+1,0)) -> 113,450 € | D10: 668,870 € | P10: 2025-04-01 | Q10: 113,450 € | R10: 555,420 €
B11: =DATE(YEAR(Mes_inicial),MONTH(Mes_inicial)+4,1) -> 2025-05-01 | C11: =SUMIFS(Tabla_EntradaPrevisión[Previsión ponderada],Tabla_EntradaPrevisión[Previsión cerrar],">="&'Previsión de ventas'!B11,Tabla_EntradaPrevisión[Previsión cerrar],"<="&DATE(YEAR('Previsión de ventas'!B11),MONTH('Previsión de ventas'!B11)+1,0)) -> 143,200 € | D11: 812,070 € | P11: 2025-05-01 | Q11: 143,200 € | R11: 668,870 €
B12: =DATE(YEAR(Mes_inicial),MONTH(Mes_inicial)+5,1) -> 2025-06-01 | C12: =SUMIFS(Tabla_EntradaPrevisión[Previsión ponderada],Tabla_EntradaPrevisión[Previsión cerrar],">="&'Previsión de ventas'!B12,Tabla_EntradaPrevisión[Previsión cerrar],"<="&DATE(YEAR('Previsión de ventas'!B12),MONTH('Previsión de ventas'!B12)+1,0)) -> 134,000 € | D12: 946,070 € | P12: 2025-06-01 | Q12: 134,000 € | R12: 812,070 €
B13: =DATE(YEAR(Mes_inicial),MONTH(Mes_inicial)+6,1) -> 2025-07-01 | C13: =SUMIFS(Tabla_EntradaPrevisión[Previsión ponderada],Tabla_EntradaPrevisión[Previsión cerrar],">="&'Previsión de ventas'!B13,Tabla_EntradaPrevisión[Previsión cerrar],"<="&DATE(YEAR('Previsión de ventas'!B13),MONTH('Previsión de ventas'!B13)+1,0)) -> 89,400 € | D13: 1,035,470 € | P13: 2025-07-01 | Q13: 89,400 € | R13: 946,070 €
B14: =DATE(YEAR(Mes_inicial),MONTH(Mes_inicial)+7,1) -> 2025-08-01 | C14: =SUMIFS(Tabla_EntradaPrevisión[Previsión ponderada],Tabla_EntradaPrevisión[Previsión cerrar],">="&'Previsión de ventas'!B14,Tabla_EntradaPrevisión[Previsión cerrar],"<="&DATE(YEAR('Previsión de ventas'!B14),MONTH('Previsión de ventas'!B14)+1,0)) -> 184,900 € | D14: 1,220,370 € | P14: 2025-08-01 | Q14: 184,900 € | R14: 1,035,470 €
B15: =DATE(YEAR(Mes_inicial),MONTH(Mes_inicial)+8,1) -> 2025-09-01 | C15: =SUMIFS(Tabla_EntradaPrevisión[Previsión ponderada],Tabla_EntradaPrevisión[Previsión cerrar],">="&'Previsión de ventas'!B15,Tabla_EntradaPrevisión[Previsión cerrar],"<="&DATE(YEAR('Previsión de ventas'!B15),MONTH('Previsión de ventas'!B15)+1,0)) -> 100,800 € | D15: 1,321,170 € | P15: 2025-09-01 | Q15: 100,800 € | R15: 1,220,370 €
B16: =DATE(YEAR(Mes_inicial),MONTH(Mes_inicial)+9,1) -> 2025-10-01 | C16: =SUMIFS(Tabla_EntradaPrevisión[Previsión ponderada],Tabla_EntradaPrevisión[Previsión cerrar],">="&'Previsión de ventas'!B16,Tabla_EntradaPrevisión[Previsión cerrar],"<="&DATE(YEAR('Previsión de ventas'!B16),MONTH('Previsión de ventas'!B16)+1,0)) -> 241,850 € | D16: 1,563,020 € | P16: 2025-10-01 | Q16: 241,850 € | R16: 1,321,170 €
B17: =DATE(YEAR(Mes_inicial),MONTH(Mes_inicial)+10,1) -> 2025-11-01 | C17: =SUMIFS(Tabla_EntradaPrevisión[Previsión ponderada],Tabla_EntradaPrevisión[Previsión cerrar],">="&'Previsión de ventas'!B17,Tabla_EntradaPrevisión[Previsión cerrar],"<="&DATE(YEAR('Previsión de ventas'!B17),MONTH('Previsión de ventas'!B17)+1,0)) -> 142,425 € | D17: 1,705,445 € | P17: 2025-11-01 | Q17: 142,425 € | R17: 1,563,020 €
B18: =DATE(YEAR(Mes_inicial),MONTH(Mes_inicial)+11,1) -> 2025-12-01 | C18: =SUMIFS(Tabla_EntradaPrevisión[Previsión ponderada],Tabla_EntradaPrevisión[Previsión cerrar],">="&'Previsión de ventas'!B18,Tabla_EntradaPrevisión[Previsión cerrar],"<="&DATE(YEAR('Previsión de ventas'!B18),MONTH('Previsión de ventas'!B18)+1,0)) -> 243,400 € | D18: 1,948,845 € | P18: 2025-12-01 | Q18: 243,400 € | R18: 1,705,445 €

Sheet Listas
B2: =NombreEmpresa -> HLP Manufacturing INC
B3: Listas de ventas
B4: Confidencial
B6: Agentes de ventas | C6: Regiones de ventas | D6: Categorías de ventas | E6: Fases de ventas
B7: Rowan Murphy | C7: Estados Unidos: nordeste | D7: Consultoría | E7: Necesidad identificada
B8: Miho Kojima | C8: Estados Unidos: sudeste | D8: Mezcla | E8: Oportunidad
B9: Cora Thomas | C9: Estados Unidos: norte central | D9: Productos | E9: Análisis de necesidades
B10: Ellis Turner | C10: Estados Unidos: sur central | D10: Servicios profesionales | E10: Solución propuesta
B11: Suma Kini | C11: Estados Unidos: noroeste | D11: Servicios | E11: Propuesta escrita
C12: Estados Unidos: sudoeste | D12: Soporte técnico | E12: Aprobación verbal
C13: Canadá: este | D13: Entrenamiento | E13: Aprobación formal
C14: Canadá: oeste | E14: Presupuesto validado
C15: EMEA: Francia | E15: Patrocinio
C16: EMEA: Alemania
C17: EMEA: Italia
C18: EMEA: otro
C19: APSA: Asia
C20: APSA: Pacífico
C21: APSA: México
C22: APSA: Australia
C23: APSA: otro
C24: EMEA: Reino Unido
